bitfinex/quotes_BTCUSD_20230114
["timestamp","ask_amount","ask_price","bid_price","bid_amount"]
[1673657644613,0.39072595,20871.0,20866.0,0.00023599]
[1673657644865,0.1967664,20870.0,20866.0,0.27928143]
[1673657645106,0.20927569,20870.0,20867.0,0.00096867]
[1673657645334,0.2,20872.0,20867.0,0.00096867]
[1673657645588,0.2,20872.0,20866.0,0.00023599]
[1673657645841,0.203278,20870.0,20867.0,0.00193734]
[1673657646091,0.09968,20880.0,20867.0,0.00096867]
[1673657646092,0.19536848,20872.0,20867.0,0.00096867]
[1673657646327,0.09968,20880.0,20867.0,0.30096867]
[1673657646591,0.21480684,20872.0,20867.0,0.59322751]
[1673657646851,0.26652551,20870.0,20867.0,0.29322751]
[1673657647116,0.45725146,20870.0,20867.0,0.29322751]
[1673657647359,0.19072595,20869.0,20867.0,0.29322751]
[1673657647611,0.2,20868.0,20867.0,0.29225884]
[1673657647867,0.24994107,20870.0,20868.0,0.3504242]
[1673657648121,0.24994107,20870.0,20868.0,0.00096867]
[1673657648350,0.2,20869.0,20868.0,0.22956257]
[1673657648595,0.28544392,20874.0,20866.0,0.00023599]
[1673657648836,0.47616987,20874.0,20867.0,0.00096867]
[1673657649094,0.194,20876.0,20867.0,0.00096867]
[1673657649334,0.28538974,20878.0,20867.0,0.00096867]
[1673657649573,0.26251091,20879.0,20867.0,0.00096867]
[1673657649574,1.28817362,20877.0,20867.0,0.00096867]
[1673657649819,0.19072595,20876.0,20868.0,0.33773315]
[1673657650126,0.19072595,20875.0,20868.0,0.33773315]
[1673657650369,0.29965331,20874.0,20869.0,0.32691042]
[1673657650614,0.29965331,20874.0,20869.0,0.26167696]
[1673657650855,0.19072595,20873.0,20866.0,0.31296725]
[1673657651101,0.19072595,20872.0,20866.0,0.00023599]
[1673657651377,0.19072595,20871.0,20867.0,0.34693031]
[1673657651623,0.10892736,20874.0,20872.0,0.25696071]
[1673657651859,0.2,20882.0,20872.0,0.25696071]
[1673657651860,0.2,20882.0,20872.0,0.48777117]
[1673657652108,0.26803974,20883.0,20872.0,0.48777117]
[1673657652347,0.19072595,20882.0,20872.0,0.63777117]
[1673657652592,0.19072595,20881.0,20873.0,0.50085126]
[1673657652874,0.6,20875.0,20866.0,0.00023599]
[1673657653108,0.6,20872.0,20866.0,0.00023599]
[1673657653365,0.59977386,20869.0,20866.0,1.325e-05]
[1673657653595,0.39072595,20868.0,20866.0,1.325e-05]
[1673657653839,0.19072595,20867.0,20866.0,1.325e-05]
[1673657654323,0.36235451,20871.0,20866.0,1.325e-05]
[1673657654567,0.2,20870.0,20866.0,0.00023939]
[1673657654821,0.2,20870.0,20866.0,1.325e-05]
[1673657654822,0.56239178,20870.0,20866.0,1.325e-05]
[1673657655053,0.2,20870.0,20866.0,1.325e-05]
[1673657655291,0.36258977,20869.0,20866.0,1.325e-05]
[1673657655539,0.2,20870.0,20866.0,1.325e-05]
[1673657655794,0.75412063,20870.0,20866.0,1.325e-05]
[1673657656031,0.321028,20868.0,20866.0,1.325e-05]
[1673657656272,0.2,20870.0,20866.0,1.325e-05]
[1673657656769,0.2,20872.0,20866.0,1.325e-05]
[1673657657010,0.19072595,20872.0,20866.0,1.325e-05]
[1673657657275,0.19072595,20872.0,20867.0,0.00022614]
[1673657657538,1.2767,20874.0,20870.0,0.00022614]
[1673657657764,0.36339468,20877.0,20871.0,0.00022614]
[1673657658040,1.1801,20881.0,20871.0,0.00022614]
[1673657658041,0.36339468,20880.0,20871.0,0.00022614]
[1673657658281,1.1801,20881.0,20876.0,0.00022614]
[1673657658523,1.1801,20881.0,20866.0,0.60001325]
[1673657658524,0.99410169,20882.0,20878.0,0.00022614]
[1673657658764,0.99410169,20882.0,20870.0,0.00022614]
[1673657658765,0.321028,20881.0,20870.0,0.00022614]
[1673657659003,0.76858263,20880.0,20868.0,0.29959896]
[1673657659253,0.51175395,20879.0,20873.0,0.00022614]
[1673657659502,0.60518795,20878.0,20873.0,0.00022614]
[1673657659756,0.321028,20877.0,20873.0,0.00022614]
[1673657660001,0.69166369,20876.0,20869.0,0.00022614]
[1673657660239,0.2,20878.0,20869.0,0.00022614]
[1673657660240,0.87514863,20875.0,20869.0,0.00022614]
[1673657660476,0.2,20878.0,20873.0,0.03878614]
[1673657660477,0.19072595,20874.0,20873.0,0.03878614]
[1673657660721,0.36339468,20877.0,20873.0,0.03878614]
[1673657660974,0.36339468,20879.0,20873.0,0.03878614]
[1673657661211,0.88029468,20882.0,20867.0,0.30497243]
[1673657661452,0.55388759,20881.0,20873.0,0.31337002]
[1673657661712,0.55388759,20881.0,20871.0,0.26306979]
[1673657661964,0.87514863,20880.0,20876.0,0.00022614]
[1673657662251,0.214462,20879.0,20876.0,0.00022614]
[1673657662491,0.214462,20879.0,20872.0,0.00064052]
[1673657662492,0.321028,20878.0,20872.0,0.00064052]
[1673657662797,1.65913768,20881.0,20870.0,0.00022614]
[1673657662798,0.76858263,20877.0,20870.0,0.00022614]
[1673657663033,0.76858263,20877.0,20869.0,0.26417426]
[1673657663034,0.19072595,20877.0,20872.0,0.36202603]
[1673657663283,0.36339468,20882.0,20876.0,0.35382926]
[1673657663521,0.01210051,20884.0,20881.0,0.00022614]
[1673657664725,0.01210051,20884.0,20877.0,0.2812707]
[1673657664970,0.20282646,20884.0,20878.0,0.3]
[1673657665451,0.20282646,20884.0,20879.0,0.2]
[1673657665686,0.01210051,20884.0,20879.0,0.2]
[1673657665937,0.00710051,20884.0,20879.0,0.2]
[1673657666180,0.00710051,20884.0,20879.0,0.20064052]
[1673657666431,0.00710051,20884.0,20880.0,0.3]
[1673657666669,0.19782646,20884.0,20880.0,0.65316136]
[1673657667155,0.19782646,20884.0,20880.0,0.3]
[1673657667416,0.00921225,20885.0,20881.0,0.2]
[1673657667916,0.01233444,20890.0,20885.0,0.00268116]
[1673657668667,0.01233444,20890.0,20886.0,0.32902914]
[1673657668903,0.00733444,20890.0,20888.0,0.2]
[1673657669176,0.00733444,20890.0,20888.0,0.17]
[1673657669428,0.01243605,20900.0,20888.0,0.17]
[1673657669665,0.01243605,20900.0,20892.0,0.04680086]
[1673657669924,0.01243605,20900.0,20892.0,0.64680086]
[1673657669925,0.00267306,20900.0,20892.0,0.64680086]
[1673657670165,0.00267306,20900.0,20893.0,0.3]
[1673657670417,0.19339901,20900.0,20894.0,0.2]
[1673657670658,0.00267306,20900.0,20894.0,0.2]
[1673657670895,0.19072595,20899.0,20892.0,0.04680086]
[1673657671145,0.19072595,20898.0,20892.0,0.04680086]
[1673657671384,0.00267306,20900.0,20892.0,0.04680086]
[1673657671640,0.01349253,20912.0,20896.0,0.6]
[1673657671894,0.19072595,20911.0,20897.0,0.36188148]
[1673657672137,0.36188148,20910.0,20894.0,0.36154448]
[1673657672394,0.01286809,20907.0,20897.0,0.12023898]
[1673657672640,0.19072595,20906.0,20897.0,0.12023898]
[1673657672864,0.19072595,20905.0,20897.0,0.12023898]
[1673657673110,0.19072595,20904.0,20898.0,0.0037282]
[1673657673354,0.19072595,20903.0,20898.0,0.2037282]
[1673657673597,0.19072595,20903.0,20897.0,0.42023898]
[1673657673598,0.19072595,20902.0,20899.0,0.3]
[1673657673844,0.01286809,20907.0,20903.0,0.25437309]
[1673657674104,0.01286809,20907.0,20904.0,0.3]
[1673657674341,0.00320448,20907.0,20905.0,0.17]
[1673657674821,0.00320448,20907.0,20905.0,0.1774564]
[1673657675072,0.10156,20919.0,20905.0,0.17]
[1673657675307,0.2,20920.0,20906.0,0.0037282]
[1673657675563,0.19072595,20919.0,20906.0,0.3295798]
[1673657675812,0.01286809,20914.0,20907.0,0.3]
[1673657676050,0.19072595,20913.0,20907.0,0.3]
[1673657676299,0.19072595,20912.0,20908.0,0.2]
[1673657676609,0.18572595,20912.0,20897.0,0.7196]
[1673657676881,0.19072595,20911.0,20903.0,0.22437309]
[1673657677128,0.35301338,20915.0,20914.0,0.10612452]
[1673657677371,0.35301338,20915.0,20914.0,0.07612452]
[1673657677657,0.6,20918.0,20914.0,0.07612452]
[1673657677887,0.6,20918.0,20914.0,0.26685047]
[1673657677888,0.321028,20917.0,20914.0,0.26685047]
[1673657678134,0.214462,20916.0,20914.0,0.26685047]
[1673657678371,0.2,20917.0,20914.0,0.26685047]
[1673657678621,0.10454,20920.0,20914.0,0.26685047]
[1673657678859,0.3,20922.0,20915.0,0.19072595]
[1673657679127,0.3,20922.0,20914.0,0.07612452]
[1673657679128,0.7045,20924.0,20916.0,0.19072595]
[1673657679366,0.2,20923.0,20917.0,0.19072595]
[1673657679608,0.1045,20926.0,20918.0,0.19072595]
[1673657679861,0.00829981,20928.0,20919.0,0.19072595]
[1673657680132,0.00829981,20928.0,20914.0,0.07612452]
[1673657680133,0.00829981,20928.0,20920.0,0.19072595]
[1673657680356,0.0129988,20924.0,20921.0,0.39072595]
[1673657680599,0.10418,20927.0,20924.0,0.00422011]
[1673657680844,0.25665419,20941.0,20925.0,0.19072595]
[1673657681083,0.6,20938.0,20926.0,0.5278756]
[1673657681325,0.39072595,20937.0,20927.0,0.17096496]
[1673657681571,0.19072595,20936.0,20928.0,0.17096496]
[1673657681846,0.6,20934.0,20928.0,0.17096496]
[1673657682089,0.214462,20929.0,20919.0,0.35691064]
[1673657682319,0.214462,20929.0,20915.0,0.36639101]
[1673657682320,0.921028,20927.0,20916.0,0.30863103]
[1673657682572,0.6,20923.0,20914.0,0.07612452]
[1673657682809,1.1612694,20922.0,20914.0,0.07612452]
[1673657683070,0.40518795,20921.0,20918.0,0.31697091]
[1673657683307,0.40518795,20921.0,20914.0,0.07612452]
[1673657683308,0.19072595,20921.0,20914.0,0.24708948]
[1673657683554,0.19072595,20920.0,20914.0,0.24708948]
[1673657683800,0.19072595,20919.0,20914.0,0.07612452]
[1673657684066,0.10354,20922.0,20914.0,0.07612452]
[1673657684067,0.19072595,20918.0,20914.0,0.07612452]
[1673657684305,0.19072595,20917.0,20915.0,0.36177059]
[1673657684557,0.2,20921.0,20915.0,0.36177059]
[1673657684792,0.2,20921.0,20914.0,0.07612452]
[1673657684793,0.19072595,20923.0,20916.0,0.18096497]
[1673657685036,0.19072595,20923.0,20917.0,0.18096497]
[1673657685280,0.19072595,20923.0,20918.0,0.18096497]
[1673657685546,0.88823,20926.0,20919.0,0.18096497]
[1673657685782,0.321028,20921.0,20920.0,0.18096497]
[1673657686024,0.51175395,20921.0,20914.0,0.07612452]
[1673657686280,0.60518795,20920.0,20914.0,0.4406377]
[1673657686516,0.51175395,20919.0,20914.0,0.07612452]
[1673657686818,0.40518795,20918.0,20915.0,0.32846628]
[1673657687053,0.51175395,20917.0,20914.0,0.07612452]
[1673657687296,0.39072595,20916.0,20905.0,0.36517331]
[1673657687539,0.39072595,20916.0,20903.0,0.23404843]
[1673657687540,0.51175395,20915.0,20903.0,0.23404843]
[1673657687784,0.40518795,20914.0,20904.0,0.48756585]
[1673657688021,0.621028,20913.0,20904.0,0.26436615]
[1673657688261,1.56058364,20912.0,20900.0,1.0]
[1673657688544,1.078308,20907.0,20896.0,0.36827834]
[1673657688810,0.00792115,20905.0,20900.0,0.1]
[1673657689050,0.19072595,20904.0,20900.0,0.1]
[1673657689300,0.214464,20902.0,20900.0,0.1]
[1673657689553,0.40518995,20901.0,20900.0,0.1]
[1673657689797,0.0004196,20898.0,20893.0,0.00934322]
[1673657690052,0.40518995,20897.0,20893.0,0.00934322]
[1673657690292,0.38833144,20896.0,20892.0,0.04680086]
[1673657690531,0.19072595,20895.0,20892.0,0.04680086]
[1673657690768,0.40518995,20894.0,20892.0,0.04680086]
[1673657691006,0.19072595,20894.0,20892.0,0.04680086]
[1673657691248,0.2120688,20893.0,20892.0,0.04680086]
[1673657691754,0.40269681,20893.0,20886.0,0.00327553]
[1673657691998,0.478682,20891.0,20878.0,0.26448174]
[1673657692236,1.1774951,20890.0,20877.0,0.2812707]
[1673657692485,1.14574129,20889.0,20881.0,0.28901713]
[1673657692719,0.4017726,20888.0,20882.0,0.33227665]
[1673657692959,0.781022,20891.0,20882.0,0.28984175]
[1673657692960,0.01145694,20887.0,20882.0,0.28984175]
[1673657693236,0.19072595,20886.0,20883.0,0.2]
[1673657693474,0.27635932,20890.0,20871.0,0.37573464]
[1673657693713,0.19072595,20886.0,20875.0,0.15327553]
[1673657693966,1.35,20883.0,20875.0,0.00327553]
[1673657694217,0.67437411,20882.0,20866.0,0.37573464]
[1673657694486,1.35,20879.0,20868.0,0.15]
[1673657694723,0.48764381,20878.0,20868.0,0.15]
[1673657695012,0.19072595,20877.0,20868.0,0.15]
[1673657695247,0.18504817,20881.0,20879.0,3.8598616]
[1673657695486,0.00868084,20881.0,20880.0,0.19072595]
[1673657695738,0.2,20885.0,20880.0,0.28837282]
[1673657695739,0.1278288,20885.0,20880.0,0.28837282]
[1673657695980,0.1278288,20885.0,20881.0,0.19072595]
[1673657696246,0.89008916,20884.0,20881.0,0.19072595]
[1673657696484,0.2,20883.0,20864.0,0.11198458]
[1673657696721,0.56132555,20882.0,20866.0,0.19072595]
[1673657696964,0.56132555,20881.0,20868.0,0.00317828]
[1673657697221,0.2,20883.0,20869.0,0.19072595]
[1673657697222,0.38504817,20880.0,20869.0,0.19072595]
[1673657697459,0.18504817,20879.0,20870.0,0.19072595]
[1673657697710,0.56132555,20878.0,20871.0,0.19072595]
[1673657697955,0.18504817,20877.0,20872.0,0.19012595]
[1673657698230,0.2,20883.0,20872.0,0.19072595]
[1673657698487,0.18564817,20882.0,20873.0,0.19072595]
[1673657698727,0.18564817,20882.0,20874.0,0.19072595]
[1673657698728,0.18564817,20881.0,20874.0,0.19072595]
[1673657698966,0.18564817,20881.0,20875.0,0.19072595]
[1673657699216,0.2,20883.0,20882.0,0.14878367]
[1673657699451,0.2,20883.0,20882.0,0.18744416]
[1673657700212,0.23649078,20894.0,20882.0,0.18744416]
[1673657700455,0.1,20895.0,20882.0,0.18744416]
[1673657700456,0.1,20895.0,20885.0,0.27975295]
[1673657700699,0.29072595,20895.0,20886.0,0.54685734]
[1673657700952,0.29072595,20895.0,20887.0,0.18744416]
[1673657700953,0.1,20895.0,20887.0,0.18744416]
[1673657701178,0.1,20895.0,20885.0,0.27975295]
[1673657701179,0.09175677,20895.0,20888.0,0.18744416]
[1673657701431,0.19151452,20897.0,20889.0,0.18744416]
[1673657701671,0.19151452,20897.0,20887.0,0.15245435]
[1673657701672,0.1915499,20900.0,20890.0,0.18651516]
[1673657701919,0.2,20903.0,20890.0,0.18651516]
[1673657702162,0.19072595,20903.0,20890.0,0.15]
[1673657702430,0.01255887,20907.0,20891.0,0.2]
[1673657702431,0.19072595,20902.0,20891.0,0.2]
[1673657702669,0.19072595,20901.0,20891.0,0.2]
[1673657702901,0.19072595,20900.0,20891.0,0.20245435]
[1673657703142,0.19072595,20899.0,20891.0,0.2]
[1673657703362,0.19072595,20898.0,20890.0,0.14455245]
[1673657703656,0.16876955,20902.0,20891.0,0.19072595]
[1673657703898,0.30076231,20906.0,20892.0,0.19072595]
[1673657704171,0.01255887,20907.0,20893.0,0.2]
[1673657704436,0.40074616,20914.0,20894.0,0.19072595]
[1673657704685,1.6754,20927.0,20894.0,0.19072595]
[1673657704686,0.50499994,20917.0,20901.0,0.19072595]
[1673657704926,0.40064994,20916.0,20902.0,0.19072595]
[1673657705164,0.60064994,20918.0,20903.0,0.19072595]
[1673657705418,0.2,20918.0,20904.0,0.19072595]
[1673657705666,1.35,20914.0,20905.0,0.19072595]
[1673657705921,1.35,20914.0,20906.0,0.19072595]
[1673657706183,0.2,20918.0,20907.0,0.19072595]
[1673657706418,1.35,20929.0,20908.0,0.39072595]
[1673657706666,0.15011273,20927.0,20911.0,0.19072595]
[1673657706913,0.28925402,20927.0,20912.0,0.46949071]
[1673657707160,0.32945581,20926.0,20913.0,1.08908209]
[1673657707409,1.35,20924.0,20914.0,0.19072595]
[1673657707653,0.52781195,20924.0,20915.0,0.19072595]
[1673657707903,0.52781195,20924.0,20913.0,0.3]
[1673657707904,0.19072595,20923.0,20914.0,0.05798834]
[1673657708143,0.19072595,20922.0,20917.0,0.2]
[1673657708414,0.19072595,20921.0,20914.0,0.05798834]
[1673657708670,0.11308106,20920.0,20912.0,0.15]
[1673657708923,0.19072595,20919.0,20912.0,0.15]
[1673657709162,1.35,20931.0,20914.0,0.27576331]
[1673657709415,0.10525,20924.0,20919.0,0.01943448]
[1673657709659,1.34982916,20928.0,20920.0,0.20986195]
[1673657709922,1.34059075,20931.0,20921.0,0.49072595]
[1673657710165,1.31766412,20932.0,20922.0,0.19072595]
[1673657710408,0.75,20926.0,20923.0,0.19072595]
[1673657710656,0.75,20926.0,20923.0,0.3]
[1673657710657,1.43360844,20926.0,20923.0,0.3]
[1673657710912,1.43360844,20926.0,20920.0,0.07760374]
[1673657710913,0.11594432,20925.0,20920.0,0.07760374]
[1673657711161,1.31766412,20921.0,20920.0,0.07760374]
[1673657711416,1.43360844,20921.0,20920.0,0.07760374]
[1673657711654,1.70157432,20921.0,20895.0,0.005]
[1673657711921,1.345,20912.0,20896.0,1.38071937]
[1673657712173,0.40355496,20920.0,20897.0,1.19409239]
[1673657712174,0.07759432,20908.0,20897.0,1.19409239]
[1673657712414,0.40216368,20907.0,20897.0,0.95614019]
[1673657712669,0.40216368,20909.0,20896.0,0.38385323]
[1673657712910,1.57459659,20908.0,20898.0,0.95620647]
[1673657713139,0.3873615,20907.0,20899.0,0.19072595]
[1673657713366,0.98767817,20905.0,20898.0,0.19072595]
[1673657713677,0.98767817,20905.0,20896.0,0.15]
[1673657713678,0.38756976,20904.0,20896.0,0.15]
[1673657713921,0.40126424,20903.0,20895.0,0.3235221]
[1673657714160,0.2,20904.0,20894.0,0.30345187]
[1673657714161,0.19988732,20902.0,20894.0,0.30345187]
[1673657714402,0.40126424,20901.0,20894.0,0.29649049]
[1673657714668,0.2,20904.0,20890.0,0.313016]
[1673657714669,0.87180581,20897.0,20890.0,0.313016]
[1673657714916,0.30700924,20899.0,20892.0,0.29623206]
[1673657715156,0.18384155,20908.0,20893.0,0.19072595]
[1673657715419,0.18384155,20908.0,20894.0,0.19072595]
[1673657715420,0.30245954,20900.0,20894.0,0.19072595]
[1673657715662,0.30245954,20895.0,20892.0,0.15]
[1673657715917,0.30245954,20895.0,20894.0,0.29338286]
[1673657716157,0.30245954,20895.0,20888.0,0.00954009]
[1673657716405,0.30245954,20889.0,20885.0,0.30918325]
[1673657716650,0.66804292,20888.0,20879.0,0.15802189]
[1673657716893,0.30245954,20885.0,20881.0,0.29232032]
[1673657717148,0.27221359,20885.0,20879.0,0.1675886]
[1673657717389,0.2,20887.0,20879.0,0.1675886]
[1673657717645,0.2,20887.0,20879.0,0.35831455]
[1673657717906,0.10596,20893.0,20880.0,0.19072595]
[1673657718148,0.2,20894.0,20881.0,0.19072595]
[1673657718358,0.27221359,20901.0,20882.0,0.79072595]
[1673657718647,0.10591,20907.0,20884.0,0.19072595]
[1673657718648,0.27221359,20900.0,20884.0,0.19072595]
[1673657718888,0.2,20899.0,20885.0,0.58255217]
[1673657719173,0.2,20899.0,20886.0,0.49072595]
[1673657719648,0.10637,20907.0,20887.0,0.19072595]
[1673657719931,0.18384155,20908.0,20891.0,0.19072595]
[1673657720186,0.2,20915.0,20899.0,0.001]
[1673657720187,0.23879035,20910.0,20899.0,0.001]
[1673657720430,0.23879035,20910.0,20901.0,0.19072595]
[1673657720660,0.2,20915.0,20902.0,0.19072595]
[1673657720912,0.24063,20916.0,20893.0,0.3]
[1673657720913,0.47942035,20916.0,20903.0,0.19072595]
[1673657721158,0.47942035,20916.0,20904.0,0.19072595]
[1673657721407,0.24063,20916.0,20905.0,0.19072595]
[1673657721679,0.34620035,20919.0,20906.0,0.39072595]
[1673657721924,0.34620035,20919.0,20907.0,0.49072595]
[1673657722161,0.01325527,20921.0,20908.0,0.19072595]
[1673657722422,0.01325527,20921.0,20909.0,0.19072595]
[1673657722675,0.01325527,20921.0,20910.0,0.19072595]
[1673657722936,0.01325527,20921.0,20911.0,0.39072595]
[1673657723182,0.01325527,20921.0,20912.0,0.19072595]
[1673657723439,0.01219589,20928.0,20914.0,0.2]
[1673657723676,0.01219589,20928.0,20915.0,0.58048465]
[1673657723918,0.23879035,20927.0,20916.0,0.49072595]
[1673657724145,0.23879035,20927.0,20917.0,0.19072595]
[1673657724409,0.23879035,20927.0,20918.0,0.19072595]
[1673657724651,0.23879035,20919.0,20909.0,0.28933085]
[1673657724895,0.3897587,20926.0,20911.0,0.36683354]
[1673657724896,0.1639504,20921.0,20911.0,0.36683354]
[1673657725162,0.23879035,20923.0,20912.0,0.19072595]
[1673657725163,0.58395278,20922.0,20912.0,0.19072595]
[1673657725407,0.58395278,20922.0,20913.0,0.19072595]
[1673657725408,0.23879035,20920.0,20913.0,0.19072595]
[1673657725657,0.23879035,20920.0,20909.0,0.46592823]
[1673657725658,0.23879035,20917.0,20909.0,0.15]
[1673657725864,0.23879035,20914.0,20903.0,0.15]
[1673657726174,0.23879035,20908.0,20903.0,0.44705518]
[1673657726428,0.23879035,20908.0,20903.0,0.15]
[1673657726682,0.2,20904.0,20903.0,0.15]
[1673657726926,0.3897587,20910.0,20908.0,0.31256576]
[1673657727175,0.23879035,20911.0,20908.0,0.19072595]
[1673657727414,0.23879035,20911.0,20909.0,0.19072595]
[1673657727657,0.2,20910.0,20906.0,0.36430429]
[1673657727927,0.2,20910.0,20906.0,0.04387903]
[1673657728413,0.3897587,20914.0,20907.0,0.19072595]
[1673657728662,1.4883,20919.0,20908.0,0.19072595]
[1673657728663,0.2,20917.0,20908.0,0.19072595]
[1673657728907,0.2,20917.0,20909.0,0.19072595]
[1673657729148,0.2,20917.0,20910.0,0.19072595]
[1673657729413,0.43379035,20916.0,20911.0,0.19072595]
[1673657729646,0.43379035,20916.0,20912.0,0.19072595]
[1673657729894,0.195,20916.0,20913.0,0.28435393]
[1673657730139,0.01310226,20917.0,20914.0,0.49072595]
[1673657730390,0.01310226,20917.0,20915.0,0.19072595]
[1673657730632,0.2,20926.0,20916.0,0.19072595]
[1673657730869,0.2,20926.0,20914.0,0.3]
[1673657730870,0.23879035,20923.0,20917.0,0.19072595]
[1673657731128,1.6802,20926.0,20918.0,0.19072595]
[1673657731375,1.6802,20926.0,20919.0,0.19072595]
[1673657731603,0.23879035,20925.0,20920.0,0.19072595]
[1673657731857,0.23879035,20925.0,20921.0,0.19072595]
[1673657732136,0.23879035,20922.0,20910.0,0.3897587]
[1673657732400,0.62854905,20921.0,20913.0,0.34015644]
[1673657732655,0.5897587,20923.0,20914.0,0.19072595]
[1673657732939,0.5897587,20923.0,20904.0,0.2]
[1673657732940,0.2,20923.0,20915.0,0.19072595]
[1673657733175,1.71899035,20924.0,20916.0,0.19072595]
[1673657733416,0.23879035,20921.0,20917.0,0.19072595]
[1673657733674,0.2,20920.0,20914.0,0.01841773]
[1673657734162,0.2683,20938.0,20917.0,0.6]
[1673657734392,0.2683,20938.0,20920.0,0.01999999]
[1673657734393,0.74550169,20938.0,20920.0,0.01999999]
[1673657734661,0.74550169,20938.0,20922.0,0.2]
[1673657734902,0.89342832,20937.0,20923.0,0.19072595]
[1673657735147,0.2683,20938.0,20924.0,0.19072595]
[1673657735148,0.41641936,20936.0,20924.0,0.19072595]
[1673657735391,0.47720169,20936.0,20925.0,0.19072595]
[1673657735640,0.2,20935.0,20926.0,0.19072595]
[1673657735901,0.2,20935.0,20927.0,0.19072595]
[1673657736140,0.67720169,20935.0,20922.0,0.49072595]
[1673657736399,0.47720169,20934.0,20924.0,0.28927484]
[1673657736646,0.2,20933.0,20925.0,0.19072595]
[1673657736889,0.2,20933.0,20926.0,0.19072595]
[1673657736890,0.47720169,20932.0,20926.0,0.19072595]
[1673657737136,0.2,20933.0,20926.0,0.19072595]
[1673657737383,0.2,20933.0,20922.0,0.3]
[1673657737384,0.61976343,20933.0,20927.0,0.19072595]
[1673657737632,0.2,20931.0,20926.0,0.19072595]
[1673657737881,0.47720169,20932.0,20926.0,0.19072595]
[1673657738111,0.41468286,20934.0,20927.0,0.19072595]
[1673657738407,0.41468286,20936.0,20928.0,0.19072595]
[1673657738645,0.41468286,20937.0,20929.0,0.19072595]
[1673657738896,0.47720169,20936.0,20930.0,0.19072595]
[1673657739138,0.41468286,20937.0,20931.0,0.19072595]
[1673657739376,0.2683,20938.0,20932.0,0.19072595]
[1673657739377,0.68298286,20938.0,20932.0,0.19072595]
[1673657739624,0.47720169,20936.0,20933.0,0.19072595]
[1673657739868,0.47720169,20936.0,20924.0,0.41001705]
[1673657740115,0.41243104,20935.0,20925.0,0.37203256]
[1673657740359,0.37235708,20936.0,20923.0,0.15]
[1673657740610,0.99827369,20935.0,20924.0,0.19072595]
[1673657740885,0.477716,20933.0,20925.0,0.19072595]
[1673657741129,0.40909146,20932.0,20926.0,0.19072595]
[1673657741380,0.19072595,20931.0,20926.0,0.1824701]
[1673657741635,0.19072595,20931.0,20921.0,0.29964955]
[1673657741879,0.57447621,20930.0,20922.0,0.48042853]
[1673657742133,0.19072595,20929.0,20923.0,0.1815349]
[1673657742370,0.11343,20932.0,20920.0,0.01999999]
[1673657742371,0.39072595,20928.0,20920.0,0.01999999]
[1673657742628,0.39072595,20928.0,20923.0,0.00497267]
[1673657742629,0.59568111,20927.0,20923.0,0.00497267]
[1673657742883,0.19072595,20927.0,20920.0,0.01999999]
[1673657743123,0.19072595,20926.0,20920.0,0.01999999]
[1673657743374,0.2,20931.0,20920.0,0.01999999]
[1673657743375,0.19072595,20925.0,20920.0,0.01999999]
[1673657743617,0.19072595,20924.0,20920.0,0.90004315]
[1673657743860,0.40484108,20930.0,20920.0,0.61999999]
[1673657744104,0.19072595,20929.0,20921.0,0.60558763]
[1673657744348,0.19072595,20929.0,20921.0,0.75558763]
[1673657744642,0.19072595,20928.0,20921.0,0.74943968]
[1673657744881,0.19072595,20928.0,20924.0,0.6]
[1673657745119,1.45404656,20935.0,20925.0,0.3]
[1673657745373,1.2617,20935.0,20925.0,0.3]
[1673657745615,0.01312421,20942.0,20934.0,0.6]
[1673657745897,0.01312421,20942.0,20939.0,0.6]
[1673657746150,0.00331763,20942.0,20940.0,0.3]
[1673657746653,0.00331763,20942.0,20936.0,0.6]
[1673657746898,0.19072595,20942.0,20936.0,0.6]
[1673657747396,0.19072595,20941.0,20934.0,0.45]
[1673657747636,0.12796421,20945.0,20934.0,0.45]
[1673657747637,0.19072595,20940.0,20934.0,0.45]
[1673657748156,0.19072595,20940.0,20937.0,0.6]
[1673657748421,0.38856829,20949.0,20945.0,0.11802133]
[1673657748683,0.00119408,20951.0,20945.0,0.11802133]
[1673657748684,0.11456,20950.0,20946.0,0.19072595]
[1673657748924,0.11456,20950.0,20945.0,0.11802133]
[1673657748925,0.11456,20950.0,20947.0,0.19072595]
[1673657749184,0.321072,20948.0,20945.0,0.11802133]
[1673657749428,0.2,20946.0,20945.0,2.133e-05]
[1673657749669,1.19410169,20946.0,20940.0,0.19024937]
[1673657749916,0.98896664,20945.0,20940.0,0.19024937]
[1673657750169,0.2,20943.0,20933.0,0.31271269]
[1673657750406,0.2,20943.0,20929.0,0.71425]
[1673657750407,0.2,20941.0,20929.0,0.6]
[1673657750656,0.59247737,20940.0,20936.0,0.33718756]
[1673657750888,0.19072595,20940.0,20939.0,0.6]
[1673657751140,0.11466,20943.0,20939.0,0.6]
[1673657751433,0.11466,20943.0,20936.0,0.00497267]
[1673657751670,0.19072595,20942.0,20936.0,0.6]
[1673657751915,0.19072595,20941.0,20936.0,0.6]
[1673657752165,0.19072595,20941.0,20937.0,0.2741561]
[1673657752407,0.60175142,20944.0,20936.0,0.94593293]
[1673657752408,0.60175142,20944.0,20936.0,0.6]
[1673657752673,0.19072595,20943.0,20936.0,0.30051833]
[1673657752923,0.2,20946.0,20932.0,0.11349]
[1673657752924,0.19072595,20942.0,20939.0,0.6]
[1673657753165,0.30421595,20946.0,20939.0,0.6]
[1673657753410,0.2,20945.0,20938.0,0.6]
[1673657753650,0.2,20945.0,20939.0,0.3]
[1673657753651,0.19072595,20945.0,20939.0,0.3]
[1673657753907,0.19072595,20945.0,20936.0,0.15]
[1673657753908,1.18482764,20944.0,20936.0,0.15]
[1673657754165,0.51524142,20946.0,20935.0,0.6]
[1673657754166,0.5169,20942.0,20935.0,0.6]
[1673657754403,0.5169,20938.0,20932.0,0.6]
[1673657754643,0.5169,20938.0,20925.0,0.00950658]
[1673657754644,1.06967906,20937.0,20929.0,0.88299369]
[1673657754898,1.06967906,20936.0,20928.0,0.6]
[1673657755143,0.47720169,20933.0,20925.0,0.00950658]
[1673657755391,0.99410169,20931.0,20925.0,6.58e-06]
[1673657755652,0.99410169,20929.0,20921.0,0.6]
[1673657755914,1.47196069,20927.0,20920.0,0.01999999]
[1673657756160,1.47196069,20927.0,20914.0,0.01841773]
[1673657756161,0.5169,20920.0,20914.0,0.01841773]
[1673657756399,0.5169,20920.0,20905.0,0.11341]
[1673657756400,0.47720169,20916.0,20904.0,0.26879]
[1673657756660,0.19072595,20912.0,20904.0,0.317598]